[Event "Titled Tuesday Blitz April 25 Late 2023"]
[White "Skibbe, Willi"]
[Black "Horton, Andrew P"]
[WhiteFideId "4682190"]
[BlackFideId "424269"]
[WhiteElo "2176"]
[BlackElo "2401"]
[Result "1/2-1/2"]
[Round "02"]
[TimeControl "180+2"]
[Date "2023.04.25"]
[WhiteClock "0:01:06"]
[BlackClock "0:00:04"]

1. d4 {[%clk 0:03:00]}  Nf6 {[%clk 0:02:58]} 2. c4 {[%clk 0:03:00]}  e6 {[%clk 0:02:57]} 3. Nf3 {[%clk 0:03:00]}  a6 {[%clk 0:02:57]} 4. Nc3 {[%clk 0:02:55]}  d5 {[%clk 0:02:57]} 5. c5 {[%clk 0:02:53]}  b6 {[%clk 0:02:56]} 6. cxb6 {[%clk 0:02:52]}  cxb6 {[%clk 0:02:57]} 7. Bf4 {[%clk 0:02:53]}  Bd6 {[%clk 0:02:57]} 8. Bxd6 {[%clk 0:02:50]}  Qxd6 {[%clk 0:02:58]} 9. e3 {[%clk 0:02:51]}  O-O {[%clk 0:02:57]} 10. Bd3 {[%clk 0:02:52]}  Nc6 {[%clk 0:02:53]} 11. O-O {[%clk 0:02:51]}  Bd7 {[%clk 0:02:52]} 12. Rc1 {[%clk 0:02:51]}  Rfc8 {[%clk 0:02:51]} 13. Qe2 {[%clk 0:02:46]}  b5 {[%clk 0:02:39]} 14. e4 {[%clk 0:02:46]}  dxe4 {[%clk 0:02:27]} 15. Nxe4 {[%clk 0:02:47]}  Nxe4 {[%clk 0:02:23]} 16. Qxe4 {[%clk 0:02:46]}  g6 {[%clk 0:02:22]} 17. Rfd1 {[%clk 0:02:42]}  Nb4 {[%clk 0:02:15]} 18. Bb1 {[%clk 0:02:39]}  Bc6 {[%clk 0:02:08]} 19. Qe5 {[%clk 0:02:32]}  Qxe5 {[%clk 0:02:03]} 20. Nxe5 {[%clk 0:02:33]}  Bd5 {[%clk 0:02:00]} 21. a3 {[%clk 0:02:31]}  Nc6 {[%clk 0:02:00]} 22. Nd7 {[%clk 0:02:26]}  Nxd4 {[%clk 0:01:40]} 23. Nf6+ {[%clk 0:02:06]}  Kg7 {[%clk 0:01:35]} 24. Rxc8 {[%clk 0:02:06]}  Rxc8 {[%clk 0:01:31]} 25. Nxd5 {[%clk 0:02:06]}  exd5 {[%clk 0:01:31]} 26. Ba2 {[%clk 0:02:06]}  Rc2 {[%clk 0:01:18]} 27. Kf1 {[%clk 0:02:04]}  Rxb2 {[%clk 0:01:03]} 28. Bxd5 {[%clk 0:02:03]}  Nc2 {[%clk 0:00:28]} 29. Bb7 {[%clk 0:01:52]}  a5 {[%clk 0:00:26]} 30. Rd7 {[%clk 0:01:48]}  Nxa3 {[%clk 0:00:22]} 31. Bd5 {[%clk 0:01:48]}  Kf6 {[%clk 0:00:22]} 32. Rxf7+ {[%clk 0:01:42]}  Ke5 {[%clk 0:00:22]} 33. Bc6 {[%clk 0:01:38]}  h5 {[%clk 0:00:22]} 34. Ra7 {[%clk 0:01:36]}  a4 {[%clk 0:00:20]} 35. Be8 {[%clk 0:01:36]}  g5 {[%clk 0:00:17]} 36. Bxh5 {[%clk 0:01:35]}  Nc2 {[%clk 0:00:15]} 37. Be8 {[%clk 0:01:33]}  Nd4 {[%clk 0:00:15]} 38. g3 {[%clk 0:01:25]}  g4 {[%clk 0:00:14]} 39. Bxb5 {[%clk 0:01:22]}  Rxb5 {[%clk 0:00:12]} 40. Rxa4 {[%clk 0:01:22]}  Rb1+ {[%clk 0:00:12]} 41. Kg2 {[%clk 0:01:21]}  Rb2 {[%clk 0:00:10]} 42. Ra5+ {[%clk 0:01:12]}  Kf6 {[%clk 0:00:10]} 43. Ra6+ {[%clk 0:01:12]}  Kg5 {[%clk 0:00:09]} 44. Ra5+ {[%clk 0:01:12]}  Nf5 {[%clk 0:00:09]} 45. h4+ {[%clk 0:01:10]}  gxh3+ {[%clk 0:00:06]} 46. Kxh3 {[%clk 0:01:10]}  Rxf2 {[%clk 0:00:05]} 47. g4 {[%clk 0:01:06]}  Rf3+ {[%clk 0:00:02]} 48. Kg2 {[%clk 0:01:06]}  Kxg4 {[%clk 0:00:03]} 49. Ra4+ {[%clk 0:01:07]}  Rf4 {[%clk 0:00:03]} 50. Rxf4+ {[%clk 0:01:06]}  Kxf4 {[%clk 0:00:04]} 1/2-1/2


[Site "https://www.chess.com"]

[Event "Titled Tuesday Blitz April 25 Late 2023"]
[White "De Souza, Cristiano Gomes"]
[Black "Sviridov, Valery"]
[WhiteFideId "2151758"]
[BlackFideId "4120680"]
[WhiteElo "2068"]
[BlackElo "2457"]
[Result "0-1"]
[Round "02"]
[TimeControl "180+2"]
[Date "2023.04.25"]
[WhiteClock "0:00:18"]
[BlackClock "0:02:24"]

1. d4 {[%clk 0:03:00]}  g6 {[%clk 0:02:57]} 2. c4 {[%clk 0:03:00]}  Bg7 {[%clk 0:02:58]} 3. Nf3 {[%clk 0:02:56]}  d6 {[%clk 0:02:58]} 4. Nc3 {[%clk 0:02:46]}  e5 {[%clk 0:02:58]} 5. dxe5 {[%clk 0:02:37]}  dxe5 {[%clk 0:02:59]} 6. Qxd8+ {[%clk 0:02:36]}  Kxd8 {[%clk 0:03:00]} 7. e4 {[%clk 0:02:35]}  f6 {[%clk 0:02:59]} 8. Be3 {[%clk 0:02:34]}  Be6 {[%clk 0:02:59]} 9. O-O-O+ {[%clk 0:02:30]}  Nd7 {[%clk 0:03:00]} 10. h3 {[%clk 0:02:10]}  Bh6 {[%clk 0:02:59]} 11. Bxh6 {[%clk 0:02:04]}  Nxh6 {[%clk 0:02:59]} 12. Be2 {[%clk 0:01:53]}  c6 {[%clk 0:02:59]} 13. Rd6 {[%clk 0:01:51]}  Ke7 {[%clk 0:02:58]} 14. Rhd1 {[%clk 0:01:51]}  Nf7 {[%clk 0:02:59]} 15. R6d2 {[%clk 0:01:49]}  a5 {[%clk 0:02:57]} 16. Kc2 {[%clk 0:01:35]}  Nc5 {[%clk 0:02:54]} 17. b3 {[%clk 0:01:33]}  Rhd8 {[%clk 0:02:51]} 18. Rxd8 {[%clk 0:01:31]}  Nxd8 {[%clk 0:02:52]} 19. Nd2 {[%clk 0:01:26]}  Nf7 {[%clk 0:02:47]} 20. f3 {[%clk 0:01:24]}  Nd6 {[%clk 0:02:45]} 21. Nf1 {[%clk 0:01:23]}  g5 {[%clk 0:02:39]} 22. Ne3 {[%clk 0:01:22]}  h5 {[%clk 0:02:39]} 23. a4 {[%clk 0:01:16]}  h4 {[%clk 0:02:38]} 24. Kb2 {[%clk 0:01:05]}  Ra6 {[%clk 0:02:33]} 25. Rd2 {[%clk 0:00:59]}  Rb6 {[%clk 0:02:31]} 26. Bd1 {[%clk 0:00:46]}  Nxc4+ {[%clk 0:02:31]} 27. Nxc4 {[%clk 0:00:45]}  Bxc4 {[%clk 0:02:32]} 28. b4 {[%clk 0:00:34]}  axb4 {[%clk 0:02:27]} 29. Ne2 {[%clk 0:00:29]}  Bxe2 {[%clk 0:02:26]} 30. Rxe2 {[%clk 0:00:28]}  Ra6 {[%clk 0:02:25]} 31. Bb3 {[%clk 0:00:18]}  Nxa4+ {[%clk 0:02:24]} 32. Bxa4 {[%clk 0:00:19]}  Rxa4 {[%clk 0:02:25]} 33. Kb3 {[%clk 0:00:19]}  b5 {[%clk 0:02:25]} 34. Rc2 {[%clk 0:00:18]}  Kd6 {[%clk 0:02:25]} 35. Rd2+ {[%clk 0:00:18]}  Kc5 {[%clk 0:02:26]} 36. Rc2+ {[%clk 0:00:18]}  Kb6 {[%clk 0:02:26]} 37. Rd2 {[%clk 0:00:18]}  Ra3+ {[%clk 0:02:25]} 38. Kb2 {[%clk 0:00:18]}  Kc7 {[%clk 0:02:24]} 0-1


[Site "https://www.chess.com"]

[Event "Titled Tuesday Blitz April 25 Late 2023"]
[White "Gritsenko, Nikolai"]
[Black "Bogaudinov, Rushan"]
[WhiteFideId "14112493"]
[BlackFideId "4129288"]
[WhiteElo "2389"]
[BlackElo "1967"]
[Result "1-0"]
[Round "02"]
[TimeControl "180+2"]
[Date "2023.04.25"]
[WhiteClock "0:00:39"]
[BlackClock "0:00:05"]

1. d4 {[%clk 0:03:00]}  Nf6 {[%clk 0:02:59]} 2. Bg5 {[%clk 0:03:00]}  d5 {[%clk 0:02:56]} 3. Nd2 {[%clk 0:02:58]}  e6 {[%clk 0:02:55]} 4. e3 {[%clk 0:02:58]}  Be7 {[%clk 0:02:55]} 5. f4 {[%clk 0:02:58]}  c5 {[%clk 0:02:54]} 6. c3 {[%clk 0:02:58]}  Nc6 {[%clk 0:02:54]} 7. Bd3 {[%clk 0:02:58]}  c4 {[%clk 0:02:45]} 8. Bc2 {[%clk 0:02:57]}  b5 {[%clk 0:02:45]} 9. a3 {[%clk 0:02:56]}  a5 {[%clk 0:02:45]} 10. Ngf3 {[%clk 0:02:56]}  Ng4 {[%clk 0:02:27]} 11. Bxe7 {[%clk 0:02:55]}  Qxe7 {[%clk 0:02:21]} 12. Qe2 {[%clk 0:02:42]}  f5 {[%clk 0:02:18]} 13. h3 {[%clk 0:02:38]}  Nf6 {[%clk 0:02:17]} 14. Ne5 {[%clk 0:02:35]}  Bd7 {[%clk 0:02:09]} 15. g4 {[%clk 0:02:32]}  O-O-O {[%clk 0:01:52]} 16. b4 {[%clk 0:02:27]}  a4 {[%clk 0:01:41]} 17. gxf5 {[%clk 0:02:19]}  exf5 {[%clk 0:01:36]} 18. Nxc6 {[%clk 0:02:16]}  Bxc6 {[%clk 0:01:37]} 19. Bxf5+ {[%clk 0:02:16]}  Kb7 {[%clk 0:01:24]} 20. Nf3 {[%clk 0:02:16]}  g6 {[%clk 0:01:21]} 21. Bc2 {[%clk 0:02:13]}  Nh5 {[%clk 0:01:16]} 22. Rg1 {[%clk 0:01:37]}  Rde8 {[%clk 0:01:05]} 23. Ne5 {[%clk 0:01:35]}  Qh4+ {[%clk 0:01:01]} 24. Kd2 {[%clk 0:01:34]}  Qxh3 {[%clk 0:00:46]} 25. Qg4 {[%clk 0:01:18]}  Qxg4 {[%clk 0:00:44]} 26. Rxg4 {[%clk 0:01:18]}  Rhf8 {[%clk 0:00:38]} 27. Rh1 {[%clk 0:01:16]}  Kc7 {[%clk 0:00:33]} 28. Rg5 {[%clk 0:01:12]}  Nf6 {[%clk 0:00:22]} 29. Rh6 {[%clk 0:01:07]}  Re7 {[%clk 0:00:17]} 30. Ke2 {[%clk 0:01:03]}  Bd7 {[%clk 0:00:16]} 31. f5 {[%clk 0:00:56]}  Bxf5 {[%clk 0:00:12]} 32. Bxf5 {[%clk 0:00:56]}  gxf5 {[%clk 0:00:13]} 33. Rxf5 {[%clk 0:00:56]}  Re6 {[%clk 0:00:12]} 34. Rg5 {[%clk 0:00:42]}  Kd6 {[%clk 0:00:09]} 35. Rg7 {[%clk 0:00:41]}  Ne8 {[%clk 0:00:05]} 36. Rd7# {[%clk 0:00:39]} 1-0


[Site "https://www.chess.com"]

[Event "Titled Tuesday Blitz April 25 Late 2023"]
[White "Marchesich, Giovanni"]
[Black "Rastbod, Ali"]
[WhiteFideId "2824790"]
[BlackFideId "12567477"]
[WhiteElo "2209"]
[BlackElo "2248"]
[Result "0-1"]
[Round "02"]
[TimeControl "180+2"]
[Date "2023.04.25"]
[WhiteClock "0:01:14"]
[BlackClock "0:01:29"]

1. d4 {[%clk 0:03:00]}  g6 {[%clk 0:02:55]} 2. Nf3 {[%clk 0:02:55]}  Bg7 {[%clk 0:02:55]} 3. e4 {[%clk 0:02:55]}  e6 {[%clk 0:02:54]} 4. Nc3 {[%clk 0:02:50]}  Ne7 {[%clk 0:02:54]} 5. Be3 {[%clk 0:02:49]}  h6 {[%clk 0:02:53]} 6. Qd2 {[%clk 0:02:49]}  d6 {[%clk 0:02:53]} 7. a4 {[%clk 0:02:45]}  Nbc6 {[%clk 0:02:48]} 8. Bc4 {[%clk 0:02:42]}  d5 {[%clk 0:02:45]} 9. Bd3 {[%clk 0:02:23]}  Nb4 {[%clk 0:02:42]} 10. e5 {[%clk 0:02:18]}  Nxd3+ {[%clk 0:02:41]} 11. Qxd3 {[%clk 0:02:18]}  O-O {[%clk 0:02:33]} 12. O-O {[%clk 0:02:18]}  a5 {[%clk 0:02:29]} 13. Ne2 {[%clk 0:02:17]}  b6 {[%clk 0:02:28]} 14. Qd2 {[%clk 0:02:16]}  Kh7 {[%clk 0:02:28]} 15. c3 {[%clk 0:02:13]}  Nf5 {[%clk 0:02:27]} 16. Nf4 {[%clk 0:02:07]}  Ba6 {[%clk 0:02:24]} 17. Rfe1 {[%clk 0:02:07]}  Rc8 {[%clk 0:02:24]} 18. b4 {[%clk 0:02:05]}  Bc4 {[%clk 0:02:16]} 19. Reb1 {[%clk 0:01:57]}  Rb8 {[%clk 0:02:13]} 20. Nd3 {[%clk 0:01:55]}  Re8 {[%clk 0:01:49]} 21. bxa5 {[%clk 0:01:55]}  bxa5 {[%clk 0:01:50]} 22. Nc5 {[%clk 0:01:55]}  Bf8 {[%clk 0:01:50]} 23. Nd3 {[%clk 0:01:47]}  Qd7 {[%clk 0:01:48]} 24. Nfe1 {[%clk 0:01:38]}  Rxb1 {[%clk 0:01:46]} 25. Rxb1 {[%clk 0:01:37]}  Qxa4 {[%clk 0:01:47]} 26. Nb2 {[%clk 0:01:34]}  Qb3 {[%clk 0:01:40]} 27. Nc2 {[%clk 0:01:29]}  Qa2 {[%clk 0:01:32]} 28. Qc1 {[%clk 0:01:28]}  Rb8 {[%clk 0:01:32]} 29. Bd2 {[%clk 0:01:15]}  Bd3 {[%clk 0:01:31]} 30. Ra1 {[%clk 0:01:14]}  Qxb2 {[%clk 0:01:29]} 0-1


[Site "https://www.chess.com"]

[Event "Titled Tuesday Blitz April 25 Late 2023"]
[White "Smith, Garrett L"]
[Black "Jaracz, Pawel"]
[WhiteFideId "2024829"]
[BlackFideId "1102222"]
[WhiteElo "2047"]
[BlackElo "2438"]
[Result "0-1"]
[Round "02"]
[TimeControl "180+2"]
[Date "2023.04.25"]
[WhiteClock "0:00:09"]
[BlackClock "0:00:11"]

1. e4 {[%clk 0:03:00]}  e5 {[%clk 0:02:59]} 2. Nf3 {[%clk 0:03:01]}  Nc6 {[%clk 0:02:59]} 3. Bc4 {[%clk 0:03:01]}  Nf6 {[%clk 0:02:59]} 4. Ng5 {[%clk 0:03:01]}  d5 {[%clk 0:02:58]} 5. exd5 {[%clk 0:03:02]}  Nd4 {[%clk 0:02:58]} 6. c3 {[%clk 0:03:02]}  b5 {[%clk 0:02:58]} 7. Bf1 {[%clk 0:03:02]}  Nf5 {[%clk 0:02:47]} 8. Bxb5+ {[%clk 0:02:59]}  Bd7 {[%clk 0:02:47]} 9. Qe2 {[%clk 0:02:56]}  Bd6 {[%clk 0:02:42]} 10. Ne4 {[%clk 0:02:47]}  Nxd5 {[%clk 0:02:30]} 11. Nxd6+ {[%clk 0:02:44]}  cxd6 {[%clk 0:02:28]} 12. d4 {[%clk 0:02:37]}  O-O {[%clk 0:02:27]} 13. dxe5 {[%clk 0:02:25]}  Bxb5 {[%clk 0:02:22]} 14. Qxb5 {[%clk 0:02:24]}  dxe5 {[%clk 0:02:21]} 15. O-O {[%clk 0:02:22]}  Rb8 {[%clk 0:02:09]} 16. Qa4 {[%clk 0:02:13]}  Qf6 {[%clk 0:02:00]} 17. Nd2 {[%clk 0:02:06]}  Qg6 {[%clk 0:01:59]} 18. Qe4 {[%clk 0:01:46]}  Nf4 {[%clk 0:01:52]} 19. g3 {[%clk 0:01:40]}  Nh3+ {[%clk 0:01:46]} 20. Kg2 {[%clk 0:01:38]}  Ng5 {[%clk 0:01:47]} 21. Qe2 {[%clk 0:01:30]}  Rfe8 {[%clk 0:01:34]} 22. Kh1 {[%clk 0:01:30]}  Qc6+ {[%clk 0:01:24]} 23. f3 {[%clk 0:01:30]}  Nd6 {[%clk 0:00:43]} 24. Nb3 {[%clk 0:01:20]}  Ne6 {[%clk 0:00:39]} 25. Qxe5 {[%clk 0:01:13]}  Rb5 {[%clk 0:00:36]} 26. Qe2 {[%clk 0:01:06]}  Rf5 {[%clk 0:00:35]} 27. Bd2 {[%clk 0:01:00]}  Ng5 {[%clk 0:00:33]} 28. Nd4 {[%clk 0:00:51]}  Rxe2 {[%clk 0:00:32]} 29. Nxc6 {[%clk 0:00:51]}  Nxf3 {[%clk 0:00:29]} 30. Rxf3 {[%clk 0:00:34]}  Rxf3 {[%clk 0:00:29]} 31. Bf4 {[%clk 0:00:33]}  Nf5 {[%clk 0:00:21]} 32. Rd1 {[%clk 0:00:28]}  h6 {[%clk 0:00:19]} 33. b4 {[%clk 0:00:20]}  Rff2 {[%clk 0:00:19]} 34. g4 {[%clk 0:00:14]}  Nh4 {[%clk 0:00:10]} 35. Bg3 {[%clk 0:00:13]}  Nf3 {[%clk 0:00:11]} 36. Bxf2 {[%clk 0:00:12]}  Rxf2 {[%clk 0:00:12]} 37. Rd8+ {[%clk 0:00:11]}  Kh7 {[%clk 0:00:11]} 38. h4 {[%clk 0:00:09]}  Rh2# {[%clk 0:00:11]} 0-1


[Site "https://www.chess.com"]

[Event "Titled Tuesday Blitz April 25 Late 2023"]
[White "Zwirs, Nico"]
[Black "Garmash, Aliona"]
[WhiteFideId "1036432"]
[BlackFideId "34127620"]
[WhiteElo "2381"]
[BlackElo "1959"]
[Result "1-0"]
[Round "02"]
[TimeControl "180+2"]
[Date "2023.04.25"]
[WhiteClock "0:01:35"]
[BlackClock "0:00:18"]

1. e4 {[%clk 0:03:00]}  g6 {[%clk 0:02:57]} 2. d4 {[%clk 0:03:00]}  Bg7 {[%clk 0:02:56]} 3. Nc3 {[%clk 0:02:59]}  d6 {[%clk 0:02:57]} 4. Be3 {[%clk 0:03:00]}  a6 {[%clk 0:02:57]} 5. g4 {[%clk 0:02:59]}  b5 {[%clk 0:02:50]} 6. Bg2 {[%clk 0:02:59]}  Bb7 {[%clk 0:02:47]} 7. h4 {[%clk 0:02:59]}  h5 {[%clk 0:02:32]} 8. gxh5 {[%clk 0:02:58]}  Rxh5 {[%clk 0:02:32]} 9. Nge2 {[%clk 0:02:58]}  Nf6 {[%clk 0:02:30]} 10. Ng3 {[%clk 0:02:55]}  Rh8 {[%clk 0:02:29]} 11. h5 {[%clk 0:02:55]}  gxh5 {[%clk 0:02:08]} 12. Nxh5 {[%clk 0:02:54]}  Nxh5 {[%clk 0:02:08]} 13. Rxh5 {[%clk 0:02:55]}  Rxh5 {[%clk 0:01:52]} 14. Qxh5 {[%clk 0:02:56]}  e6 {[%clk 0:01:47]} 15. Qh7 {[%clk 0:02:39]}  Bf8 {[%clk 0:01:46]} 16. O-O-O {[%clk 0:02:32]}  Nd7 {[%clk 0:01:43]} 17. Rg1 {[%clk 0:02:21]}  Qe7 {[%clk 0:01:16]} 18. Bf3 {[%clk 0:02:20]}  O-O-O {[%clk 0:01:11]} 19. Bh5 {[%clk 0:02:16]}  Nf6 {[%clk 0:00:54]} 20. Qxf7 {[%clk 0:02:12]}  Nxe4 {[%clk 0:00:54]} 21. Nxe4 {[%clk 0:02:06]}  Bxe4 {[%clk 0:00:54]} 22. Bg5 {[%clk 0:02:00]}  Qxf7 {[%clk 0:00:38]} 23. Bxf7 {[%clk 0:02:01]}  Bd5 {[%clk 0:00:36]} 24. Bxd8 {[%clk 0:02:00]}  Kxd8 {[%clk 0:00:36]} 25. Rg6 {[%clk 0:01:44]}  Ke7 {[%clk 0:00:36]} 26. Bg8 {[%clk 0:01:44]}  c5 {[%clk 0:00:24]} 27. dxc5 {[%clk 0:01:40]}  dxc5 {[%clk 0:00:24]} 28. f4 {[%clk 0:01:38]}  b4 {[%clk 0:00:18]} 29. f5 {[%clk 0:01:35]} 1-0


[Site "https://www.chess.com"]

[Event "Titled Tuesday Blitz April 25 Late 2023"]
[White "Antonova, Nadezhda"]
[Black "Kucuksari, Kaan"]
[WhiteFideId "14700182"]
[BlackFideId "6380166"]
[WhiteElo "1765"]
[BlackElo "2364"]
[Result "0-1"]
[Round "02"]
[TimeControl "180+2"]
[Date "2023.04.25"]
[WhiteClock "0:01:50"]
[BlackClock "0:00:59"]

1. Nf3 {[%clk 0:02:59]}  Nf6 {[%clk 0:02:58]} 2. b3 {[%clk 0:02:59]}  b6 {[%clk 0:02:56]} 3. Bb2 {[%clk 0:03:00]}  Bb7 {[%clk 0:02:57]} 4. g3 {[%clk 0:03:01]}  Bxf3 {[%clk 0:02:54]} 5. exf3 {[%clk 0:03:01]}  e6 {[%clk 0:02:52]} 6. Bg2 {[%clk 0:03:01]}  d5 {[%clk 0:02:51]} 7. O-O {[%clk 0:03:01]}  Be7 {[%clk 0:02:50]} 8. f4 {[%clk 0:03:01]}  O-O {[%clk 0:02:50]} 9. d3 {[%clk 0:03:02]}  c6 {[%clk 0:02:42]} 10. Nd2 {[%clk 0:03:01]}  a5 {[%clk 0:02:42]} 11. a4 {[%clk 0:03:01]}  Na6 {[%clk 0:02:41]} 12. Nf3 {[%clk 0:03:00]}  Nd7 {[%clk 0:02:37]} 13. Ne5 {[%clk 0:03:00]}  Nxe5 {[%clk 0:02:35]} 14. fxe5 {[%clk 0:03:00]}  Rc8 {[%clk 0:02:05]} 15. Qe2 {[%clk 0:02:59]}  d4 {[%clk 0:01:56]} 16. f4 {[%clk 0:02:50]}  Nb4 {[%clk 0:01:53]} 17. Rac1 {[%clk 0:02:46]}  b5 {[%clk 0:01:40]} 18. Ra1 {[%clk 0:02:42]}  Qb6 {[%clk 0:01:33]} 19. Ba3 {[%clk 0:02:39]}  Rfe8 {[%clk 0:01:31]} 20. Be4 {[%clk 0:02:32]}  g6 {[%clk 0:01:29]} 21. Rf2 {[%clk 0:02:24]}  Nd5 {[%clk 0:01:25]} 22. Bb2 {[%clk 0:02:18]}  Ne3 {[%clk 0:01:11]} 23. Re1 {[%clk 0:02:15]}  Bb4 {[%clk 0:01:11]} 24. Ra1 {[%clk 0:01:59]}  Qc5 {[%clk 0:01:01]} 25. Bf3 {[%clk 0:01:56]}  Bc3 {[%clk 0:00:59]} 26. Ba3 {[%clk 0:01:50]}  b4 {[%clk 0:00:59]} 0-1


[Site "https://www.chess.com"]

[Event "Titled Tuesday Blitz April 25 Late 2023"]
[White "Lewicki, Miroslaw"]
[Black "Sailer, Mike"]
[WhiteFideId "1113380"]
[BlackFideId "2012901"]
[WhiteElo "2212"]
[BlackElo "2109"]
[Result "1-0"]
[Round "02"]
[TimeControl "180+2"]
[Date "2023.04.25"]
[WhiteClock "0:01:36"]
[BlackClock "0:00:26"]

1. g3 {[%clk 0:02:55]}  d5 {[%clk 0:02:59]} 2. Bg2 {[%clk 0:02:56]}  Nf6 {[%clk 0:03:00]} 3. Nf3 {[%clk 0:02:45]}  Bf5 {[%clk 0:03:00]} 4. O-O {[%clk 0:02:46]}  e6 {[%clk 0:03:00]} 5. d3 {[%clk 0:02:45]}  Be7 {[%clk 0:03:01]} 6. Re1 {[%clk 0:02:45]}  O-O {[%clk 0:02:59]} 7. Nbd2 {[%clk 0:02:45]}  h6 {[%clk 0:02:59]} 8. c3 {[%clk 0:02:46]}  c5 {[%clk 0:02:58]} 9. Qc2 {[%clk 0:02:46]}  Nc6 {[%clk 0:02:57]} 10. e4 {[%clk 0:02:47]}  Bh7 {[%clk 0:02:57]} 11. b3 {[%clk 0:02:45]}  b5 {[%clk 0:02:53]} 12. Bb2 {[%clk 0:02:45]}  Rc8 {[%clk 0:02:53]} 13. Rad1 {[%clk 0:02:44]}  Re8 {[%clk 0:02:47]} 14. h4 {[%clk 0:02:43]}  Bf8 {[%clk 0:02:45]} 15. Nf1 {[%clk 0:02:43]}  Qb6 {[%clk 0:02:36]} 16. e5 {[%clk 0:02:42]}  Nd7 {[%clk 0:02:36]} 17. N1h2 {[%clk 0:02:42]}  c4 {[%clk 0:02:36]} 18. h5 {[%clk 0:02:32]}  Bxd3 {[%clk 0:02:29]} 19. Qd2 {[%clk 0:02:32]}  Be4 {[%clk 0:02:24]} 20. Ng4 {[%clk 0:02:29]}  Nc5 {[%clk 0:02:12]} 21. Nh4 {[%clk 0:02:04]}  Bxg2 {[%clk 0:02:06]} 22. Kxg2 {[%clk 0:02:05]}  Nd3 {[%clk 0:02:01]} 23. Re3 {[%clk 0:02:04]}  Nxb2 {[%clk 0:01:36]} 24. Qxb2 {[%clk 0:02:05]}  cxb3 {[%clk 0:01:31]} 25. axb3 {[%clk 0:02:05]}  Bc5 {[%clk 0:01:25]} 26. Rf3 {[%clk 0:02:05]}  b4 {[%clk 0:01:18]} 27. Qd2 {[%clk 0:01:42]}  bxc3 {[%clk 0:01:09]} 28. Nxh6+ {[%clk 0:01:42]}  gxh6 {[%clk 0:01:09]} 29. Qxh6 {[%clk 0:01:43]}  Nxe5 {[%clk 0:00:34]} 30. Qg5+ {[%clk 0:01:37]}  Kf8 {[%clk 0:00:34]} 31. Qxe5 {[%clk 0:01:35]}  Qxb3 {[%clk 0:00:28]} 32. Ng6+ {[%clk 0:01:35]}  Kg8 {[%clk 0:00:26]} 33. Qh8# {[%clk 0:01:36]} 1-0


[Site "https://www.chess.com"]

[Event "Titled Tuesday Blitz April 25 Late 2023"]
[White "Toma, Katarzyna"]
[Black "Manukyan, Sargis A."]
[WhiteFideId "1119907"]
[BlackFideId "13303970"]
[WhiteElo "2149"]
[BlackElo "2187"]
[Result "0-1"]
[Round "02"]
[TimeControl "180+2"]
[Date "2023.04.25"]
[WhiteClock "0:00:08"]
[BlackClock "0:01:21"]

1. e4 {[%clk 0:03:00]}  c5 {[%clk 0:03:00]} 2. Nf3 {[%clk 0:02:59]}  d6 {[%clk 0:02:58]} 3. Bb5+ {[%clk 0:02:58]}  Bd7 {[%clk 0:02:58]} 4. c4 {[%clk 0:02:56]}  Nf6 {[%clk 0:02:57]} 5. Nc3 {[%clk 0:02:55]}  Nc6 {[%clk 0:02:57]} 6. d4 {[%clk 0:02:48]}  cxd4 {[%clk 0:02:55]} 7. Nxd4 {[%clk 0:02:48]}  g6 {[%clk 0:02:56]} 8. O-O {[%clk 0:02:46]}  Bg7 {[%clk 0:02:56]} 9. Nde2 {[%clk 0:02:26]}  O-O {[%clk 0:02:56]} 10. h3 {[%clk 0:02:18]}  a6 {[%clk 0:02:55]} 11. Ba4 {[%clk 0:02:17]}  Rb8 {[%clk 0:02:54]} 12. Be3 {[%clk 0:02:10]}  Ne5 {[%clk 0:02:51]} 13. Bxd7 {[%clk 0:02:03]}  Qxd7 {[%clk 0:02:52]} 14. b3 {[%clk 0:01:46]}  b5 {[%clk 0:02:51]} 15. cxb5 {[%clk 0:01:33]}  axb5 {[%clk 0:02:50]} 16. Rc1 {[%clk 0:01:33]}  b4 {[%clk 0:02:50]} 17. Na4 {[%clk 0:01:27]}  Nxe4 {[%clk 0:02:48]} 18. Qd5 {[%clk 0:01:17]}  Nf6 {[%clk 0:02:42]} 19. Qd2 {[%clk 0:01:06]}  Qb5 {[%clk 0:02:27]} 20. f4 {[%clk 0:01:01]}  Nc6 {[%clk 0:02:14]} 21. Rc4 {[%clk 0:00:34]}  Nd5 {[%clk 0:01:57]} 22. Bf2 {[%clk 0:00:27]}  Na5 {[%clk 0:01:53]} 23. Re4 {[%clk 0:00:18]}  f5 {[%clk 0:01:38]} 24. Nd4 {[%clk 0:00:15]}  Qb7 {[%clk 0:01:31]} 25. Re2 {[%clk 0:00:12]}  e5 {[%clk 0:01:30]} 26. Ne6 {[%clk 0:00:10]}  Nxf4 {[%clk 0:01:23]} 27. Nxf8 {[%clk 0:00:08]}  Qxg2# {[%clk 0:01:21]} 0-1


[Site "https://www.chess.com"]